bitfinex-derivatives/quotes_BTCF0:USTF0_20250429
["timestamp","ask_amount","ask_price","bid_price","bid_amount"]
[1745931602555,0.0526885,94864.0,94847.0,0.0319]
[1745931602556,0.2107787,94853.0,94847.0,0.0319]
[1745931602848,0.2108076,94840.0,94839.0,0.06772]
[1745931603039,0.2108098,94839.0,94838.0,0.0319]
[1745931603239,0.2411098,94839.0,94838.0,0.0319]
[1745931603446,0.2411098,94839.0,94838.0,0.2427121]
[1745931603842,0.2739098,94839.0,94838.0,0.2427121]
[1745931604439,0.2749098,94839.0,94838.0,0.2790121]
[1745931605450,0.2749098,94839.0,94838.0,0.0369]
[1745931605649,0.2749098,94839.0,94838.0,0.005]
[1745931605844,0.2759098,94839.0,94838.0,0.01]
[1745931606350,0.2431098,94839.0,94838.0,0.01]
[1745931606548,0.3082098,94839.0,94838.0,0.01]
[1745931607247,0.2108165,94836.0,94835.0,1e-08]
[1745931608355,0.2118165,94836.0,94835.0,0.00400001]
[1745931608548,0.2128165,94836.0,94835.0,0.00900001]
[1745931609764,0.2108565,94818.0,94817.0,0.00158199]
[1745931609954,0.5716565,94818.0,94817.0,0.00943389]
[1745931610147,0.5716565,94818.0,94817.0,0.00158199]
[1745931610458,0.2108832,94806.0,94805.0,0.00105479]
[1745931610756,0.2108921,94802.0,94801.0,0.16093036]
[1745931611960,0.2108921,94802.0,94801.0,0.40342466]
[1745931612148,0.2108718,94812.0,94811.0,0.2635827]
[1745931612347,0.2417718,94812.0,94811.0,0.2635827]
[1745931612657,0.2108645,94815.0,94814.0,0.2108654]
[1745931613049,0.0312,94826.0,94824.0,0.210841]
[1745931613362,0.2940587,94825.0,94824.0,0.210841]
[1745931613555,0.2108565,94819.0,94818.0,0.2108551]
[1745931613754,0.2108565,94819.0,94818.0,0.0317]
[1745931613947,0.2720565,94819.0,94818.0,0.0317]
[1745931614148,0.210861,94816.0,94815.0,0.0317]
[1745931614361,0.2108677,94813.0,94807.0,0.08156]
[1745931614567,0.2108677,94813.0,94808.0,0.0331]
[1745931615054,0.2108677,94813.0,94809.0,0.2108754]
[1745931615259,0.2726677,94813.0,94808.0,0.0331]
[1745931615660,0.2726677,94813.0,94812.0,0.5716699]
[1745931615872,0.2776677,94813.0,94812.0,0.5716699]
[1745931616466,0.2816677,94813.0,94812.0,0.5716699]
[1745931616870,0.2505677,94813.0,94812.0,0.5716699]
[1745931617376,0.2505677,94813.0,94812.0,0.3608]
[1745931619671,0.009,94813.0,94812.0,0.5716699]
[1745931620165,0.0527018,94841.0,94816.0,0.0527149]
[1745931620361,0.2108365,94827.0,94826.0,0.3608]
[1745931620768,0.2744365,94827.0,94826.0,0.3608]
[1745931620962,0.3075365,94827.0,94826.0,0.3608]
[1745931621170,0.2108565,94818.0,94817.0,0.0312]
[1745931621664,0.2108632,94816.0,94815.0,0.2108622]
[1745931622061,0.2744632,94816.0,94815.0,0.2108622]
[1745931622974,0.2784632,94816.0,94815.0,0.2108622]
[1745931623168,0.2794632,94816.0,94815.0,0.2108622]
[1745931623573,0.2764632,94816.0,94815.0,0.2108622]
[1745931624075,0.2764632,94816.0,94815.0,0.2128622]
[1745931624966,0.2754632,94816.0,94815.0,0.2128622]
[1745931625171,0.2764632,94816.0,94815.0,0.2128622]
[1745931625568,0.2754632,94816.0,94815.0,0.2128622]
[1745931625773,0.2448632,94816.0,94815.0,0.2128622]
[1745931626273,0.2448632,94816.0,94815.0,0.2108622]
[1745931627083,0.2448632,94816.0,94815.0,0.2424622]
[1745931627773,0.2761632,94816.0,94815.0,0.2424622]
[1745931629678,0.034,94816.0,94815.0,0.2424622]
[1745931629882,0.002,94816.0,94815.0,0.6124622]
[1745931630279,0.212861,94816.0,94815.0,0.2424622]
[1745931630477,0.002,94816.0,94815.0,0.2424622]
[1745931630679,0.002,94816.0,94815.0,0.5624622]
[1745931631368,0.002,94816.0,94815.0,0.5634622]
[1745931631971,0.002,94816.0,94815.0,2.0634622]
[1745931633373,0.002,94816.0,94815.0,1.7534622]
[1745931634777,0.212861,94816.0,94815.0,1.5426]
[1745931635376,0.212861,94816.0,94815.0,1.5326]
[1745931635773,0.212861,94816.0,94815.0,0.0326]
[1745931641793,0.212861,94816.0,94815.0,0.001]
[1745931644182,0.2108677,94813.0,94812.0,0.08288]
[1745931645485,0.1145162,94815.0,94803.0,0.2409888]
[1745931645486,0.2108855,94805.0,94804.0,0.2937672]
[1745931645991,0.2108855,94805.0,94804.0,0.3264672]
[1745931646199,0.2108855,94805.0,94804.0,0.2937672]
[1745931646883,0.2758855,94805.0,94804.0,0.2937672]
[1745931648187,0.2778855,94805.0,94804.0,0.2937672]
[1745931648491,0.2788855,94805.0,94804.0,0.2937672]
[1745931649483,0.2788855,94805.0,94804.0,0.08288]
[1745931649884,0.2788855,94805.0,94804.0,0.2937677]
[1745931650087,0.2788855,94805.0,94804.0,0.3243677]
[1745931651000,0.2788855,94805.0,94804.0,0.11348]
[1745931651187,0.2788855,94805.0,94804.0,0.3243677]
[1745931651598,0.2788855,94805.0,94804.0,0.11348]
[1745931653801,0.2788855,94805.0,94804.0,0.3243677]
[1745931655194,0.2788855,94805.0,94800.0,0.1088]
[1745931655195,0.0527219,94804.0,94800.0,0.1088]
[1745931655397,0.2108943,94801.0,94800.0,0.1088]
[1745931656512,0.2108943,94801.0,94800.0,0.3498966]
[1745931656802,0.2410908,94803.0,94802.0,0.2108921]
[1745931657204,0.2108921,94802.0,94801.0,0.0634]
[1745931657411,0.2433921,94802.0,94801.0,0.2742943]
[1745931658297,0.2443921,94802.0,94801.0,0.2742943]
[1745931659605,0.2108943,94801.0,94800.0,0.4025766]
[1745931659999,0.2108943,94801.0,94800.0,0.4342766]
[1745931660199,0.2416943,94801.0,94800.0,0.4342766]
[1745931660702,0.2426943,94801.0,94800.0,0.4342766]
[1745931661013,0.2436943,94801.0,94800.0,0.4342766]
[1745931661502,0.2436943,94801.0,94800.0,0.4343166]
[1745931661708,0.0328,94801.0,94800.0,0.4343166]
[1745931661907,0.2436943,94801.0,94800.0,0.4343166]
[1745931662104,0.002,94801.0,94800.0,0.7743166]
[1745931662703,0.002,94801.0,94800.0,0.4343166]
[1745931663502,0.2128943,94801.0,94800.0,0.4343166]
[1745931664202,0.002,94801.0,94800.0,0.4343166]
[1745931665602,0.2128943,94801.0,94800.0,0.4343166]
[1745931665907,0.002,94801.0,94800.0,0.4343166]
[1745931666112,0.002,94801.0,94800.0,0.7843166]
[1745931667408,0.002,94801.0,94800.0,0.3513966]
[1745931667612,0.2128943,94801.0,94800.0,0.3196966]
[1745931667804,0.3051943,94801.0,94800.0,0.3196966]
[1745931668003,0.3051943,94801.0,94800.0,0.1088]
[1745931668607,0.3051943,94801.0,94800.0,0.3196966]
[1745931668902,0.3051943,94801.0,94800.0,0.1088]
[1745931671015,0.3051943,94801.0,94800.0,0.3196966]
[1745931671909,0.3051943,94801.0,94800.0,0.1088]
[1745931672417,0.3051943,94801.0,94800.0,0.3196966]
[1745931672917,0.064,94801.0,94800.0,0.3196966]
[1745931673606,0.2748943,94801.0,94800.0,0.3522966]
[1745931676208,0.2748943,94801.0,94800.0,0.3196966]
[1745931677214,0.2748943,94801.0,94800.0,0.3519966]
[1745931680911,0.064,94801.0,94800.0,0.3519966]
[1745931681112,0.0323,94801.0,94800.0,0.7019966]
[1745931681317,0.2431943,94801.0,94800.0,0.7330966]
[1745931681509,0.2431943,94801.0,94800.0,0.3830966]
[1745931683714,0.2431943,94801.0,94800.0,0.4636966]
[1745931685919,0.2431943,94801.0,94800.0,0.4636966]
[1745931686312,0.002,94801.0,94800.0,0.7836966]
[1745931686819,0.08012571,94807.0,94806.0,0.2108832]
[1745931687032,0.06544097,94830.0,94814.0,0.2108654]
[1745931687218,0.25416581,94815.0,94814.0,0.5716654]
[1745931687410,0.25416581,94815.0,94814.0,0.58209332]
[1745931687816,0.25416581,94815.0,94814.0,0.6331654]
[1745931688320,0.25816581,94815.0,94814.0,0.6331654]
[1745931689112,0.25416581,94815.0,94814.0,0.6331654]
[1745931689417,0.25516581,94815.0,94814.0,0.6331654]
[1745931690011,0.2148632,94815.0,94814.0,0.6331654]
[1745931691328,0.2118632,94815.0,94814.0,0.6331654]
[1745931691515,0.2128632,94815.0,94814.0,0.6341654]
[1745931691720,0.2128632,94815.0,94814.0,0.6351654]
[1745931692219,0.2118632,94815.0,94814.0,0.6341654]
[1745931692420,0.2128632,94815.0,94814.0,0.6351654]
[1745931693220,0.2118632,94815.0,94814.0,0.6341654]
[1745931693416,0.2128632,94815.0,94814.0,0.6341654]
[1745931694018,0.2118632,94815.0,94814.0,0.6341654]
[1745931694219,0.002,94815.0,94814.0,0.6341654]
[1745931694833,0.2128632,94815.0,94814.0,0.6341654]
[1745931695522,0.002,94815.0,94814.0,0.7147654]
[1745931696830,0.2128632,94815.0,94814.0,0.7147654]
[1745931697129,0.0312,94824.0,94823.0,0.2108454]
[1745931697431,0.0312,94824.0,94823.0,0.5716454]
[1745931697432,0.2420432,94824.0,94823.0,0.5716454]
[1745931697821,0.2420432,94824.0,94823.0,0.6355454]
[1745931698229,0.2420432,94824.0,94823.0,0.4247]
[1745931698423,0.2420432,94824.0,94823.0,0.3927]
[1745931698730,0.2440432,94824.0,94823.0,0.3937]
[1745931698924,0.2761432,94824.0,94823.0,0.3937]
[1745931699822,0.2761432,94824.0,94823.0,0.3947]
[1745931700923,0.2761432,94824.0,94823.0,0.4753]
[1745931701124,0.2761432,94824.0,94823.0,0.4434]
[1745931701631,0.2761432,94824.0,94823.0,0.6542454]
[1745931701832,0.2761432,94824.0,94823.0,0.4434]
[1745931702228,0.2751432,94824.0,94823.0,0.4424]
[1745931702418,0.2761432,94824.0,94823.0,0.4749]
[1745931702822,0.2751432,94824.0,94823.0,0.6847454]
[1745931703028,0.2761432,94824.0,94823.0,0.4749]
[1745931703428,0.2761432,94824.0,94823.0,0.6857454]
[1745931703626,0.2761432,94824.0,94823.0,0.7499454]
[1745931705529,0.2751432,94824.0,94823.0,0.7489454]
[1745931705734,0.2761432,94824.0,94823.0,0.7499454]
[1745931706524,0.2761432,94824.0,94823.0,0.5066]
[1745931707036,0.2761432,94824.0,94823.0,0.6857454]
[1745931708133,0.2751432,94824.0,94823.0,0.6847454]
[1745931708329,0.2761432,94824.0,94823.0,0.6857454]
[1745931713827,0.2761432,94824.0,94823.0,0.4749]
[1745931714030,0.2761432,94824.0,94823.0,0.4434]
[1745931715438,0.2761432,94824.0,94823.0,0.6542454]
[1745931716736,0.2761432,94824.0,94823.0,0.6510454]
[1745931719441,0.2761432,94824.0,94823.0,0.4402]
[1745931721139,0.2761432,94824.0,94823.0,0.4725]
[1745931722346,0.2761432,94824.0,94823.0,0.6833454]
[1745931723446,0.2761432,94824.0,94823.0,0.1117]
[1745931724639,0.2761432,94824.0,94823.0,0.3225454]
[1745931724948,0.002,94824.0,94823.0,0.6925454]
[1745931725132,0.0015,94835.0,94834.0,0.210821]
[1745931725333,0.0015,94835.0,94834.0,0.931621]
[1745931725742,0.0015,94835.0,94834.0,1.009021]
[1745931725941,0.15954179,94845.0,94834.0,1.009021]
[1745931725942,0.08903006,94845.0,94844.0,0.2107987]
[1745931726146,0.08903006,94845.0,94844.0,0.5715987]
[1745931726342,0.08903006,94845.0,94844.0,2.3915987]
[1745931726647,0.08903006,94845.0,94844.0,2.3994614]
[1745931726839,0.08903006,94845.0,94844.0,2.4951614]
[1745931727753,0.29982656,94845.0,94844.0,2.4951614]
[1745931728142,0.29982656,94845.0,94844.0,2.1751614]
[1745931728542,0.30082656,94845.0,94844.0,1.9653627]
[1745931728741,0.30182656,94845.0,94844.0,2.18745461]
[1745931729141,0.2117965,94845.0,94844.0,2.26385461]
[1745931729339,0.2127965,94845.0,94844.0,2.26385461]
[1745931729547,0.2117965,94845.0,94844.0,2.26385461]
[1745931729750,0.2107965,94845.0,94844.0,2.26385461]
[1745931729953,0.2117965,94845.0,94844.0,2.26385461]
[1745931730950,0.2117965,94845.0,94844.0,2.18645461]
[1745931731253,0.2117965,94845.0,94844.0,2.26385461]
[1745931731444,0.2107965,94845.0,94844.0,2.26485461]
[1745931731640,0.2127965,94845.0,94844.0,2.26485461]
[1745931732939,0.002,94845.0,94844.0,2.26485461]
[1745931733335,0.001,94845.0,94844.0,2.47575541]
[1745931733547,0.003,94845.0,94844.0,2.68755411]
[1745931733949,0.003,94845.0,94844.0,2.61015411]
[1745931734247,0.003,94845.0,94844.0,2.68755411]
[1745931734653,0.2137965,94845.0,94844.0,2.31755411]
[1745931735947,0.003,94845.0,94844.0,2.31755411]
[1745931736149,0.2137965,94845.0,94844.0,2.31755411]
[1745931736350,0.2458965,94845.0,94844.0,2.31755411]
[1745931742155,0.0351,94845.0,94844.0,2.31755411]
[1745931742551,0.0351,94845.0,94844.0,2.64755411]
[1745931746162,0.003,94845.0,94844.0,2.64755411]
[1745931750365,0.0302,94851.0,94850.0,0.2107854]
[1745931750557,0.0302,94851.0,94850.0,0.9015854]
[1745931750861,0.0331,94855.0,94854.0,0.2107765]
[1745931751064,0.0331,94855.0,94854.0,0.5407765]
[1745931751255,0.0331,94855.0,94854.0,0.67652276]
[1745931751663,0.0331,94855.0,94854.0,0.70682276]
[1745931752058,0.2107668,94859.0,94858.0,0.2634545]
[1745931752257,0.2413668,94859.0,94858.0,0.67030076]
[1745931752458,0.0306,94859.0,94858.0,0.70280076]
[1745931752759,0.2413654,94859.0,94858.0,0.70280076]
[1745931752964,0.0306,94859.0,94858.0,0.97250076]
[1745931753165,0.0306,94859.0,94858.0,1.12280076]
[1745931753754,0.2413654,94859.0,94858.0,0.70730946]
[1745931753959,0.2443654,94859.0,94858.0,0.70831386]
[1745931754162,0.2473654,94859.0,94858.0,0.78403386]
[1745931754362,0.2473654,94859.0,94858.0,0.70931386]
[1745931754579,0.2473654,94859.0,94858.0,0.78403386]
[1745931755265,0.2473654,94859.0,94858.0,0.7682876]
[1745931755854,0.2473654,94859.0,94858.0,0.6935676]
[1745931756054,0.16999348,94859.0,94858.0,0.7682876]
[1745931756255,0.16999348,94859.0,94858.0,0.78385102]
[1745931756666,0.006,94859.0,94858.0,0.78385102]
[1745931756867,0.2167654,94859.0,94858.0,0.78385102]
[1745931757569,0.2167654,94859.0,94858.0,0.57308342]
[1745931757868,0.2167654,94859.0,94858.0,0.78385102]
[1745931758268,0.2167654,94859.0,94858.0,0.7682876]
[1745931759756,0.2500654,94859.0,94858.0,0.7682876]
[1745931760268,0.2500654,94859.0,94858.0,0.4828]
[1745931760466,0.2500654,94859.0,94858.0,0.55752]
[1745931760665,0.2107876,94849.0,94848.0,0.43552]
[1745931760868,0.5715876,94849.0,94848.0,0.07472]
[1745931761071,0.2108143,94837.0,94821.0,0.0646]
[1745931761274,0.5716143,94837.0,94835.0,0.07472]
[1745931761567,0.92705831,94837.0,94829.0,0.289088]
[1745931762172,0.79705831,94837.0,94829.0,0.289088]
[1745931762375,1.04705831,94837.0,94829.0,0.289088]
[1745931763080,0.92705831,94837.0,94829.0,0.289088]
[1745931763582,0.67805831,94837.0,94836.0,0.16293036]
[1745931764263,0.67905831,94837.0,94836.0,0.16393036]
[1745931764569,0.67905831,94837.0,94836.0,0.16293036]
[1745931764570,0.74375831,94837.0,94836.0,0.16293036]
[1745931764770,0.74575831,94837.0,94836.0,0.16293036]
[1745931765477,0.74575831,94837.0,94836.0,0.002]
[1745931767374,1.15885831,94837.0,94836.0,0.002]
[1745931767576,0.2108254,94832.0,94831.0,0.00158175]
[1745931767776,0.5716254,94832.0,94831.0,0.00158175]
[1745931767971,0.2108565,94818.0,94817.0,0.00158199]
[1745931768166,0.5716565,94818.0,94817.0,0.00158199]
[1745931768367,0.5716565,94818.0,94817.0,0.21244079]
[1745931768877,0.6368565,94818.0,94817.0,0.52244079]
[1745931769390,0.6368565,94818.0,94817.0,0.55254079]
[1745931769585,0.6043565,94818.0,94817.0,0.34168199]
[1745931769777,0.6043565,94818.0,94817.0,0.03168199]
[1745931769962,0.6043565,94818.0,94817.0,0.39168199]
[1745931770765,0.6043565,94818.0,94817.0,0.42328199]
[1745931771276,0.6053565,94818.0,94817.0,0.63514079]
[1745931771665,0.6063565,94818.0,94817.0,0.63614079]
[1745931772065,0.6063565,94818.0,94817.0,0.42528199]
[1745931773277,0.2455565,94818.0,94817.0,0.63614079]
[1745931773479,0.2128565,94818.0,94817.0,0.63614079]
[1745931773979,0.2128565,94818.0,94817.0,0.27614079]
[1745931774175,0.2118565,94818.0,94817.0,0.74514079]
[1745931774375,0.2128565,94818.0,94817.0,0.74714079]
[1745931774578,0.2128565,94818.0,94817.0,0.74814079]
[1745931775065,0.2118565,94818.0,94817.0,0.39614079]
[1745931775266,0.2128565,94818.0,94817.0,0.76814079]
[1745931775470,0.2443565,94818.0,94817.0,0.55728199]
[1745931775878,0.0335,94818.0,94817.0,0.76814079]
[1745931776784,0.2443565,94818.0,94817.0,0.76814079]
[1745931777094,0.2443565,94818.0,94817.0,0.46568199]
[1745931777284,0.2443565,94818.0,94817.0,0.15568199]
[1745931777590,0.2443565,94818.0,94817.0,0.52814199]
[1745931777591,0.6051565,94818.0,94817.0,0.52814199]
[1745931777775,0.6041565,94818.0,94817.0,0.52614199]
[1745931777976,0.6041565,94818.0,94817.0,0.52714199]
[1745931778385,0.6041565,94818.0,94817.0,0.52614199]
[1745931778584,0.6061565,94818.0,94817.0,0.52714199]
[1745931778798,0.6061565,94818.0,94817.0,0.19714199]
[1745931778972,0.6041565,94818.0,94817.0,0.19614199]
[1745931779178,0.6061565,94818.0,94817.0,0.56614199]
[1745931780478,0.6061565,94818.0,94817.0,0.59674199]
[1745931780681,0.6061565,94818.0,94817.0,0.80760079]
[1745931780989,0.6041565,94818.0,94817.0,0.80660079]
[1745931781293,0.6061565,94818.0,94817.0,0.80760079]
[1745931782685,0.6061565,94818.0,94817.0,0.52418199]
[1745931782991,0.7116205,94818.0,94817.0,0.122]
[1745931783189,0.2108832,94806.0,94805.0,0.00105479]
[1745931783387,0.5716832,94806.0,94805.0,0.07361479]
[1745931784290,0.6037832,94806.0,94805.0,0.00105479]
[1745931784482,0.6037832,94806.0,94805.0,0.03425479]
[1745931784687,0.6037832,94806.0,94805.0,0.03625479]
[1745931784688,0.6047832,94806.0,94805.0,0.03625479]
[1745931785284,0.6057832,94806.0,94805.0,0.03425479]
[1745931785485,0.6067832,94806.0,94805.0,0.03525479]
[1745931786982,0.003,94806.0,94805.0,0.61614029]
[1745931787182,0.003,94806.0,94805.0,0.76704029]
[1745931787881,0.2138832,94806.0,94805.0,0.7827722]
[1745931788492,0.003,94806.0,94805.0,0.7827722]
[1745931788791,0.003,94806.0,94805.0,0.4327722]
[1745931788990,0.003,94806.0,94805.0,0.7327722]
[1745931789791,0.2138832,94806.0,94805.0,0.4327722]
[1745931789995,0.2138832,94806.0,94805.0,0.8027722]
[1745931790691,0.2138832,94806.0,94805.0,0.2218867]
[1745931790887,0.5746832,94806.0,94805.0,0.41704029]
[1745931791083,0.5746832,94806.0,94805.0,0.20615479]
[1745931791488,0.6073832,94806.0,94805.0,0.17525479]
[1745931791686,0.6073832,94806.0,94805.0,0.24781479]
[1745931791887,0.6073832,94806.0,94805.0,0.22781479]
[1745931796399,0.6073832,94806.0,94805.0,0.43870029]
[1745931796594,0.3638,94806.0,94805.0,0.74870029]
[1745931796892,0.003,94806.0,94805.0,0.76462714]
[1745931797101,0.003,94806.0,94805.0,0.47462714]
[1745931797295,0.003,94806.0,94805.0,0.84462714]
[1745931797490,0.2138832,94806.0,94805.0,0.84462714]
[1745931798189,0.2138832,94806.0,94805.0,0.84461679]
[1745931798596,0.003,94806.0,94805.0,0.84461679]
[1745931798899,0.0527109,94824.0,94816.0,0.210861]
[1745931799091,0.6239588,94817.0,94816.0,0.5767775]
[1745931799700,0.2108588,94817.0,94816.0,0.6419775]
[1745931799899,0.2108588,94817.0,94816.0,0.64207189]
[1745931800104,0.2138588,94817.0,94816.0,0.76207189]
[1745931800296,0.2178588,94817.0,94816.0,0.76307189]
[1745931800905,0.2178588,94817.0,94816.0,0.747061]
[1745931801101,0.2178588,94817.0,94816.0,0.1531]
[1745931801295,0.2118588,94817.0,94816.0,0.1541]
[1745931801494,0.2118588,94817.0,94816.0,0.1551]
[1745931801705,0.6335588,94817.0,94816.0,0.365961]
[1745931801907,0.6335588,94817.0,94816.0,0.685961]
[1745931802198,0.6335588,94817.0,94816.0,0.719061]
[1745931803208,0.6335588,94817.0,94816.0,0.720061]
[1745931803406,0.6335588,94817.0,94816.0,0.4761]
[1745931803700,0.6335588,94817.0,94816.0,0.1561]
[1745931804296,0.4227,94817.0,94816.0,0.664961]
[1745931804498,0.4227,94817.0,94816.0,0.699161]
[1745931805004,0.6335588,94817.0,94816.0,0.71270749]
[1745931805205,0.6335588,94817.0,94816.0,0.46964649]
[1745931805507,0.6335588,94817.0,94816.0,0.68050749]
[1745931805897,0.6335588,94817.0,94816.0,0.664961]
[1745931807309,0.6335588,94817.0,94816.0,0.1541]
[1745931810206,0.6335588,94817.0,94816.0,0.364961]
[1745931811904,0.6335588,94817.0,94816.0,0.1541]
[1745931812811,0.6335588,94817.0,94816.0,0.364961]
[1745931813008,0.3922,94817.0,94816.0,0.694961]
[1745931813198,0.6030588,94817.0,94816.0,0.726361]
[1745931814315,0.3618,94817.0,94816.0,0.696361]
[1745931814497,0.001,94817.0,94816.0,0.696361]
[1745931817706,0.001,94817.0,94816.0,2.196361]
[1745931820010,0.001,94817.0,94816.0,2.557161]
[1745931821712,0.3608,94832.0,94824.0,0.2108432]
[1745931822019,0.0015,94835.0,94832.0,0.2108254]
[1745931822222,0.0015,94835.0,94832.0,0.22660004]
[1745931822408,0.0015,94835.0,94832.0,0.59660004]
[1745931822607,0.0815257,94835.0,94834.0,0.210821]
[1745931822911,0.0815257,94835.0,94834.0,0.63659564]
[1745931823115,0.0815257,94835.0,94834.0,0.75674912]
[1745931823313,0.0815257,94835.0,94834.0,0.75674906]
[1745931824112,0.0815257,94835.0,94834.0,0.75774906]
[1745931824712,0.10653023,94844.0,94843.0,0.210801]
[1745931825011,0.10653023,94844.0,94843.0,0.682561]
[1745931825213,0.10653023,94844.0,94843.0,0.81877452]
[1745931825712,0.10653023,94844.0,94843.0,0.88387452]
[1745931826510,0.10753023,94844.0,94843.0,0.88487452]
[1745931826811,0.10853023,94844.0,94843.0,0.83487452]
[1745931827014,0.002,94844.0,94843.0,0.83487452]
[1745931829314,0.002,94844.0,94843.0,0.8347775]
[1745931830019,0.2127987,94844.0,94843.0,0.84529605]
[1745931830414,0.001,94844.0,94843.0,0.84729605]
[1745931830713,0.0325,94844.0,94843.0,0.84929605]
[1745931832218,0.0325,94844.0,94843.0,0.83317955]
[1745931832523,0.2432987,94844.0,94843.0,0.84929244]
[1745931833122,0.2432987,94844.0,94843.0,0.49929244]
[1745931833319,0.0325,94844.0,94843.0,0.82929244]
[1745931833622,0.2432987,94844.0,94843.0,0.82929244]
[1745931834018,0.2432987,94844.0,94843.0,0.81317955]
[1745931834320,0.0325,94844.0,94843.0,0.82914575]
[1745931835519,0.0325,94844.0,94843.0,0.82926188]
[1745931836423,0.2432987,94844.0,94843.0,0.82926188]
[1745931837525,0.0325,94844.0,94843.0,0.82926188]
[1745931837825,0.0325,94844.0,94843.0,0.82921551]
[1745931838024,0.2432987,94844.0,94843.0,0.79631551]
[1745931838615,0.2432987,94844.0,94843.0,0.58551451]
[1745931838918,0.2432987,94844.0,94843.0,0.46637522]
[1745931839120,0.2432987,94844.0,94843.0,0.83637522]
[1745931839613,0.2432987,94844.0,94843.0,0.83610331]
[1745931840320,0.2432987,94844.0,94843.0,0.83474331]
[1745931840517,0.2432987,94844.0,94843.0,0.22174231]
[1745931840716,0.2432987,94844.0,94843.0,0.43254331]
[1745931840916,0.0325,94844.0,94843.0,0.80254331]
[1745931841222,0.2432987,94844.0,94843.0,0.80254331]
[1745931841614,0.2432987,94844.0,94843.0,0.80241122]
[1745931844312,0.2432987,94844.0,94843.0,0.8025534]
[1745931845124,0.2432987,94844.0,94843.0,0.4325534]
[1745931845527,0.2432987,94844.0,94843.0,0.2217524]
[1745931845927,0.2432987,94844.0,94843.0,0.4325534]
[1745931846118,0.2432987,94844.0,94843.0,0.41671955]
[1745931846320,0.2432987,94844.0,94843.0,0.20591855]
[1745931848225,0.2432987,94844.0,94843.0,0.41671955]
[1745931848923,0.2432987,94844.0,94843.0,0.20591855]
[1745931851028,0.7095347,94844.0,94843.0,0.1954]
[1745931851231,0.7095347,94844.0,94843.0,0.0754]
[1745931851525,0.7095347,94844.0,94843.0,0.005]
[1745931851719,0.7095347,94844.0,94813.0,0.0704]
[1745931851720,0.2108454,94823.0,94822.0,0.0301]
[1745931851918,0.2108454,94823.0,94818.0,0.033]
[1745931851919,0.2108543,94819.0,94818.0,0.033]
[1745931852151,0.0527129,94821.0,94813.0,0.0704]
[1745931852152,0.2108565,94818.0,94813.0,0.0704]
[1745931852429,0.2728565,94818.0,94813.0,0.0704]
[1745931853833,0.2728565,94818.0,94817.0,0.00158199]
[1745931854532,0.2738565,94818.0,94817.0,0.00558199]
[1745931854718,0.2748565,94818.0,94817.0,0.00658199]
[1745931861825,0.2748565,94818.0,94817.0,1.50658199]
[1745931864629,0.2748565,94818.0,94817.0,0.00658199]
[1745931867124,0.2748565,94818.0,94817.0,0.12658199]
[1745931867321,0.2128565,94818.0,94817.0,0.33744079]
[1745931867925,0.2128565,94818.0,94817.0,1.86914079]
[1745931869132,0.2128565,94818.0,94817.0,1.65828199]
[1745931869831,0.2128565,94818.0,94817.0,1.69038199]
[1745931871425,0.2753565,94818.0,94817.0,1.69038199]
[1745931875621,0.2441565,94818.0,94817.0,1.69038199]
[1745931878032,0.2128565,94818.0,94817.0,1.90124079]
[1745931878233,0.2128565,94818.0,94817.0,1.69038199]
[1745931878633,0.2128565,94818.0,94817.0,1.90124079]
[1745931879122,0.2128565,94818.0,94817.0,1.69038199]
[1745931879725,0.2128565,94818.0,94817.0,1.90124079]
[1745931879926,0.2128565,94818.0,94817.0,1.69038199]
[1745931882535,0.2128565,94818.0,94817.0,0.15828199]
[1745931882741,0.2460565,94818.0,94817.0,0.15828199]
[1745931883631,0.2460565,94818.0,94817.0,0.15528199]
[1745931884040,0.2450565,94818.0,94817.0,0.15428199]
[1745931884241,0.2460565,94818.0,94817.0,0.15528199]
[1745931895239,0.6068565,94818.0,94817.0,0.15528199]
[1745931903750,0.6068565,94818.0,94817.0,0.36614079]
[1745931904245,0.6068565,94818.0,94817.0,0.15528199]
[1745931910041,0.6068565,94818.0,94817.0,0.39614079]
[1745931910445,0.6068565,94818.0,94817.0,0.18528199]
[1745931910647,0.6068565,94818.0,94817.0,0.46646079]
[1745931910847,0.6068565,94818.0,94817.0,0.25560199]
[1745931915749,0.6068565,94818.0,94817.0,0.22560199]
[1745931916052,0.6068565,94818.0,94817.0,0.15528199]
[1745931918853,0.6068565,94818.0,94817.0,0.18728199]
[1745931920050,0.5736565,94818.0,94817.0,0.39814079]
[1745931920854,0.5736565,94818.0,94817.0,1.89814079]
[1745931923463,0.5736565,94818.0,94817.0,1.68728199]
[1745931923961,0.5736565,94818.0,94817.0,0.12358199]
[1745931926354,0.5736565,94818.0,94817.0,0.15548199]
[1745931927365,0.5736565,94818.0,94817.0,1.65548199]
[1745931927967,0.5736565,94818.0,94817.0,1.86634079]
[1745931929365,0.5736565,94818.0,94817.0,1.65548199]
[1745931929756,0.5736565,94818.0,94817.0,1.86634079]
[1745931932459,0.5736565,94818.0,94817.0,1.89654079]
[1745931933962,0.5736565,94818.0,94817.0,1.68568199]
[1745931934263,0.5736565,94818.0,94817.0,1.89654079]
[1745931935367,0.5736565,94818.0,94817.0,1.68568199]
[1745931937664,0.6360565,94818.0,94817.0,0.12358199]
[1745931950269,0.6360565,94818.0,94817.0,0.00358199]
[1745931954471,0.6360565,94818.0,94817.0,0.03438199]
[1745931955065,0.6360565,94818.0,94817.0,0.15438199]
[1745931967380,0.71617802,94818.0,94817.0,0.15438199]
[1745931967577,0.0527219,94804.0,94778.0,0.00158264]
[1745931967778,0.2109344,94783.0,94778.0,0.00158264]
[1745931967979,0.2109344,94783.0,94776.0,0.01075509]
[1745931967980,0.5717344,94783.0,94776.0,0.01075509]
[1745931968179,0.21095,94776.0,94759.0,0.3608]
[1745931968486,0.21095,94776.0,94775.0,3e-08]
[1745931968780,0.31646201,94776.0,94775.0,3e-08]
[1745931968981,0.2109589,94772.0,94771.0,8e-08]
[1745931969180,0.6917589,94772.0,94771.0,8e-08]
[1745931969381,0.79727491,94772.0,94771.0,8e-08]
[1745931970074,0.5717589,94772.0,94771.0,0.12000008]
[1745931970677,0.5727589,94772.0,94771.0,0.12000008]
[1745931970985,0.5727589,94772.0,94771.0,0.33096118]
[1745931971180,0.5727589,94772.0,94771.0,0.12000008]
[1745931971483,0.5747589,94772.0,94771.0,0.12000008]
[1745931973383,0.5747589,94772.0,94771.0,0.12]
[1745931974891,0.003,94772.0,94771.0,0.6509611]
[1745931975191,0.10653023,94774.0,94773.0,0.2109567]
[1745931975381,0.16129534,94800.0,94786.0,0.2109277]
[1745931975578,0.0527267,94796.0,94786.0,0.6009277]
[1745931975780,0.0527272,94795.0,94786.0,0.6710477]
[1745931976088,0.16129534,94800.0,94799.0,0.2108988]